Cogmind - Beta 16 @@@ ROGUE MODE // 2025.12.21 @ 17:37:24 Player: Oneirical Result: Destroyed by S-27 Virus with Autogun Performance ------------- Evolutions (3) 1500 Regions Visited (6) 1200 Robots Destroyed (11) 55 Value Destroyed (261) 261 Prototype IDs (0) 0 Alien Tech Used (0) 0 Bonus (691) 691 TOTAL SCORE: 3707 Bonus ------- Entered Garrisons 200 Used RIF Installer 500 Friendly Fire -9 Cogmind --------- Core Integrity 0/700 Matter 269/300 Energy 98/100 System Corruption 0% Temperature Cool (0) Movement Core (50) Location -7/Garrison Parts ------- > --- POWER (1) -------- (None) > --- PROPULSION (4) --- (None) > --- UTILITY (5) ------ (None) > --- WEAPON (3) ------- (None) > --- INVENTORY (5) ---- Improved Heat Sink Small Matter Pod (0) Authchip [R/Combat] Authchip [Processor] High-powered Tractor Beam Peak State ------------ > --- POWER ------------ (None) > --- PROPULSION ------- (None) > --- UTILITY ---------- Coolant Injector Small Storage Unit Advanced Visual Processing Unit > --- WEAPON ----------- Plasma Cannon Plasma Cannon Plasma Cannon > --- INVENTORY -------- Improved Heat Sink Small Matter Pod Authchip [R/Combat] Authchip [R/Combat] Authchip [Processor] High-powered Tractor Beam [Rating: 21] Favorites ----------- Power Ion Engine Engine Ion Engine Propulsion Wheel Leg Improved Titanium Leg Wheel Wheel Flight Unit Cesium-ion Thruster Utility Small Storage Unit Device Advanced Weight Redist. System Storage Small Storage Unit Processor Targeting Computer Protection Hardened Light Armor Plating Weapon Light Assault Rifle Energy Gun Salvaging Laser Energy Cannon Plasma Cannon Ballistic Gun Light Assault Rifle Launcher Grenade Launcher Special Weapon Mining Laser Build | -11 -10 -9 -9 -8 -7 -7 ------- Run | Yrd Mat Mat Min Mat Fac Gar Slots Evolved 6 | . . 2 . 2 2 . Power . | . . . . . . . Propulsion 2 | . . . . 1 1 . Utility 3 | . . 1 . 1 1 . Weapon 1 | . . 1 . . . . Parts Attached 24 | 6 1 2 1 8 6 . Power 2 | 1 . . . 1 . . Engine 2 | 1 . . . 1 . . Core . | . . . . . . . Reactor . | . . . . . . . Propulsion 4 | 2 . . . 1 1 . Treads . | . . . . . . . Leg 1 | . . . . . 1 . Wheel 2 | 2 . . . . . . Hover . | . . . . . . . Flight 1 | . . . . 1 . . Utility 7 | 1 1 1 . 3 1 . Device 3 | . . . . 2 1 . Storage 1 | 1 . . . . . . Processor 2 | . 1 . . 1 . . Hackware . | . . . . . . . Protection 1 | . . 1 . . . . Artifact . | . . . . . . . Weapon 11 | 2 . 1 1 3 4 . Energy Gun 4 | . . 1 . 2 1 . Energy Cannon 3 | . . . . . 3 . Ballistic Gun 2 | 2 . . . . . . Ballistic Cannon . | . . . . . . . Launcher 1 | . . . 1 . . . Special Weapon 1 | . . . . 1 . . Impact Weapon . | . . . . . . . Slashing Weapon . | . . . . . . . Piercing Weapon . | . . . . . . . Special Melee Weapon . | . . . . . . . Unidentified Prototypes . | . . . . . . . Parts Lost 16 | . . . 8 5 3 . Power 2 | . . . 1 1 . . Propulsion 4 | . . . 2 1 1 . Utility 3 | . . . 1 1 1 . Weapon 7 | . . . 4 2 1 . Highest Loss Streak 8 | . . . 8 3 3 . To Critical Strikes . | . . . . . . . Average Backups 6 | . 4 7 7 6 6 5 Power . | . . . . . . . Propulsion . | . . . . . . . Utility 4 | . 2 5 5 5 5 5 Weapon 1 | . 1 1 1 1 . . Tool/Special . | . . . . . . . Unused Backups 8 | . . . 1 1 1 5 Power 1 | . . . . 1 . . Propulsion . | . . . . . . . Utility 7 | . . . 1 . 1 5 Weapon . | . . . . . . . Tool/Special . | . . . . . . . Average Slot Usage (%) 71 | . 92 99 90 48 33 . Engine 8 | . 14 11 9 5 . . Wheel 14 | . 28 22 19 . . . Flight 1 | . . . . 6 . . Device 1 | . . . . 6 3 . Storage 9 | . 14 11 11 9 6 . Processor 10 | . 7 11 11 15 13 . Protection 4 | . . 10 9 . . . Energy Gun 4 | . . 11 3 4 2 . Ballistic Gun 14 | . 28 22 19 . . . Launcher 1 | . . . 6 . . . Peak Build Rating 21 | 6 9 12 12 20 21 1 Average Rating 9 | 4 7 11 10 13 12 1 On Entrance 5 | . 6 9 12 3 7 1 Avg Prop Armor Cover (%) . | . . . . . . . Naked Turns 129 | . . . . . 11 118 Heaviest Build 20 | 12 12 18 20 20 20 . Greatest Support 26 | 26 26 26 26 14 20 3 Greatest Overweight (x) 6 | . . . 3 1 6 . Average Overweight (x) . | . . . . . . . Largest Inventory Capacity 8 | 8 8 8 8 8 8 5 Average Capacity 7 | 6 8 8 8 8 7 5 Most Carried 8 | 1 7 8 8 8 7 5 Average Carried 6 | . 4 7 7 6 6 5 Final Capacity 8 | 8 8 8 8 8 5 5 Final Carried 8 | 1 7 8 7 7 5 5 Class Distribution -------------------- 54% | Mutant 45% | Gunner Dominant Class ---------------- Mutant | -10/Materials Gunner | -9/Materials Gunner | -9/Mines Mutant | -8/Materials Mutant | -7/Factory Mutant | -7/Garrison Resources | -11 -10 -9 -9 -8 -7 -7 ----------- Run | Yrd Mat Mat Min Mat Fac Gar Matter Collected 364 | 173 107 . 24 60 . . Remotely . | . . . . . . . Salvage Created 351 | 22 77 . 24 228 . . Parts 24 | 3 5 . 7 9 . . Haulers Intercepted 1 | . 1 . . . . . Recyclers Shooed . | . . . . . . . Parts Field Recycled . | . . . . . . . Retrieved Matter . | . . . . . . . Parts Self-Destructed . | . . . . . . . Prevented . | . . . . . . . Parts Restored . | . . . . . . . Kills | -11 -10 -9 -9 -8 -7 -7 ------- Run | Yrd Mat Mat Min Mat Fac Gar Combat Hostiles Destroyed 8 | . . . 4 4 . . Guns 6 | . . . 2 4 . . AOE 2 | . . . 2 . . . Classes Destroyed 6 | 1 2 . 1 2 . . Tunneler 1 | 1 . . . . . . Hauler 1 | . 1 . . . . . Watcher 1 | . 1 . . . . . Swarmer 4 | . . . 4 . . . Grunt 3 | . . . . 3 . . Sentry 1 | . . . . 1 . . Best Kill Streak 4 | 1 1 . 4 4 . . Combat Bots Only 4 | . . . 4 4 . . Max Kills in Single Turn 2 | 1 1 . 2 1 . . Gunslinging . | . . . . . . . Exploded 2 | . . . 2 . . . Melee . | . . . . . . . Uniques/NPCs Destroyed . | . . . . . . . Combat | -11 -10 -9 -9 -8 -7 -7 -------- Run | Yrd Mat Mat Min Mat Fac Gar Hostile Shots Fired 228 | . 3 18 35 77 32 63 Missed 77 | . 1 5 8 32 10 21 Hits 151 | . 2 13 27 45 22 42 Projectile 151 | . 2 13 27 45 22 42 AOE 18 | . . . 18 . . . Critical Strikes 3 | . . 1 . 1 1 . Damage Taken 2532 | . 15 168 846 541 340 622 Core 1293 | . 7 40 304 233 87 622 Absorbed by Shields 49 | . . . . . . 49 Core Remaining (%) 67 | 100 97 . 14 57 . . Volleys Fired 31 | 1 4 . 10 11 5 . Largest 3 | 2 2 . 3 3 1 . Hottest 190 | 40 40 . 70 190 55 . Shots Fired 52 | 2 8 . 21 16 5 . Gun 46 | 2 8 . 19 12 5 . Cannon . | . . . . . . . Launcher 2 | . . . 2 . . . Special 4 | . . . . 4 . . Kinetic 29 | 2 8 . 19 . . . Thermal 4 | . . . . 4 . . Explosive 2 | . . . 2 . . . Electromagnetic 17 | . . . . 12 5 . Robot Hit Streak 8 | 2 2 . 4 8 2 . Robot Miss Streak 2 | . 2 . 2 1 2 . Penetration Max . | . . . . . . . Secondary Targets 1 | . . . 1 . . . Max Gunslinging Chain 1 | . . . 1 . . . Shots Hit Robots 28 | 2 4 . 9 11 2 . Core Hits 21 | 2 3 . 7 8 1 . Critical Kills . | . . . . . . . Critical Parts Destroyed . | . . . . . . . Critical Strikes . | . . . . . . . Melee Attacks . | . . . . . . . Impact . | . . . . . . . Slashing . | . . . . . . . Piercing . | . . . . . . . Sneak Attacks . | . . . . . . . Combat Hostiles . | . . . . . . . Follow-up Attacks . | . . . . . . . Damage Inflicted 507 | 19 42 . 204 168 46 28 Guns 351 | 19 42 . 80 168 42 . Cannons . | . . . . . . . Explosions 124 | . . . 124 . . . Melee . | . . . . . . . Ramming 32 | . . . . . 4 28 Kinetic 141 | 19 42 . 80 . . . Thermal . | . . . . . . . Explosive 124 | . . . 124 . . . Electromagnetic 210 | . . . . 168 42 . Impact . | . . . . . . . Slashing . | . . . . . . . Piercing . | . . . . . . . Highest Corruption . | . . . . . . . Average Corruption . | . . . . . . . Corruption Purged . | . . . . . . . Corruption Blocked . | . . . . . . . Overload Shots . | . . . . . . . Overflow Damage . | . . . . . . . Projectiles . | . . . . . . . Explosions . | . . . . . . . Melee . | . . . . . . . Knockbacks . | . . . . . . . Impact . | . . . . . . . Kinetic . | . . . . . . . Secondary . | . . . . . . . Self-Inflicted Damage 12 | . . . . . . 12 Shots . | . . . . . . . Rammed 7 | . . . . . . 7 Targets Rammed 8 | . . . . . 1 7 Kicked 1 | . . . . . 1 . Crushed . | . . . . . . . Highest Temperature 79 | . . 9 50 79 33 . Average Temperature 21 | . . 9 18 23 18 . Received Heat Transfer 474 | . . 90 . 162 216 6 Siege Activations . | . . . . . . . Martial Activations . | . . . . . . . Shielding Activations . | . . . . . . . Robots Disrupted . | . . . . . . . Combat Hostiles . | . . . . . . . Robots Corrupted . | . . . . . . . Combat Hostiles . | . . . . . . . Parts Fried . | . . . . . . . Impact Corruptions . | . . . . . . . Robots Melted . | . . . . . . . Combat Hostiles . | . . . . . . . Parts Melted . | . . . . . . . Heat Transferred . | . . . . . . . Parts Sabotaged . | . . . . . . . Parts Stolen . | . . . . . . . Parts Stripped . | . . . . . . . Power Chain Reactions . | . . . . . . . Alert | -11 -10 -9 -9 -8 -7 -7 ------- Run | Yrd Mat Mat Min Mat Fac Gar Maximum Alert Level . | . . . . . . . Low Security (%) 100 | 100 100 100 100 100 100 100 Level 1 . | . . . . . . . Level 2 . | . . . . . . . Level 3 . | . . . . . . . Level 4 . | . . . . . . . Level 5 . | . . . . . . . High Security . | . . . . . . . Max Security . | . . . . . . . Peak Influence 116 | 5 7 . 89 116 59 100 Initial 59 | . . . . . 59 10 Average 17 | 1 . . 35 33 34 26 Influence Increases 455 | 5 14 . 99 232 15 90 Destroy 0b10 Robot/C 160 | . . . 80 80 . . Destroy 0b10 Robot/NC 15 | 5 10 . . . . . Destroy Leader 34 | . 4 . 10 20 . . Successful Hack 8 | . . . . 8 . . Disable Machine 15 | . . . . 15 . . Destroy Structure 13 | . . . 9 4 . . Partial Spotted 30 | . . . . 30 . . Lose Combat Pursuer 180 | . . . . 75 15 90 Influence Decreases 355 | 5 14 . 99 101 131 5 Entered New Map 77 | . . . . . 72 5 Time Decay 160 | 5 14 . 50 51 40 . Lost Part 118 | . . . 49 50 19 . Squads Dispatched 5 | . 1 . . 3 1 . Investigation 2 | . . . . 1 1 . Extermination . | . . . . . . . Reinforcement 3 | . 1 . . 2 . . Assault . | . . . . . . . Garrison . | . . . . . . . Intercept . | . . . . . . . Searches Triggered . | . . . . . . . Construction Impeded . | . . . . . . . Haulers Reinforced . | . . . . . . . Active Scanning Responses . | . . . . . . . Cargo Convoy Interrupts . | . . . . . . . Stealth | -11 -10 -9 -9 -8 -7 -7 --------- Run | Yrd Mat Mat Min Mat Fac Gar Distress Signals 2 | . . 1 . 1 . . Communications Jammed . | . . . . . . . Distress Signals . | . . . . . . . Times Spotted 62 | . 8 5 10 23 2 14 Peak Tracking Total 18 | . 5 5 12 18 3 11 Tactical Retreats 6 | . . . 1 2 1 2 Traps | -11 -10 -9 -9 -8 -7 -7 ------- Run | Yrd Mat Mat Min Mat Fac Gar Traps Triggered 2 | . . . . . . 2 Indirectly . | . . . . . . . Trap Hack Attempts . | . . . . . . . Triggered . | . . . . . . . Disarmed . | . . . . . . . Reprogrammed . | . . . . . . . Reused . | . . . . . . . Traps Extracted . | . . . . . . . Installed . | . . . . . . . Triggered . | . . . . . . . Machines | -11 -10 -9 -9 -8 -7 -7 ---------- Run | Yrd Mat Mat Min Mat Fac Gar Machines Disabled 1 | . . . . 1 . . Max in Single Turn 1 | . . . . 1 . . Machines Repaired . | . . . . . . . Machines Dismantled . | . . . . . . . Machines Sabotaged . | . . . . . . . Overloaded Fab Kills . | . . . . . . . Hacking | -11 -10 -9 -9 -8 -7 -7 --------- Run | Yrd Mat Mat Min Mat Fac Gar Machines Accessed 7 | . . 2 1 2 2 . Terminals 3 | . . . 1 2 . . Fabricators . | . . . . . . . Repair Stations . | . . . . . . . Recycling Units 2 | . . 1 . . 1 . Scanalyzers 1 | . . 1 . . . . Garrison Access 1 | . . . . . 1 . Total Hacks 22 | . . 8 2 9 3 . Successful 5 | . . 2 . 1 2 . Failed 16 | . . 5 2 8 1 . Catastrophic 2 | . . . . 1 1 . Database Lockouts 1 | . . 1 . . . . Manual 5 | . . . . 5 . . Terminals 11 | . . . 2 9 . . Fabricators . | . . . . . . . Repair Stations . | . . . . . . . Recycling Units 7 | . . 5 . . 2 . Scanalyzers 3 | . . 3 . . . . Garrison Access 1 | . . . . . 1 . Terminal Hacks 1 | . . . . 1 . . Level Access Points 1 | . . . . 1 . . Fabricator Hacks . | . . . . . . . Repair Station Hacks . | . . . . . . . Recycling Unit Hacks 1 | . . . . . 1 . Retrieve Components 1 | . . . . . 1 . Scanalyzer 2 | . . 2 . . . . Insert Component 1 | . . 1 . . . . Retrieve Study 1 | . . 1 . . . . Garrison Access Hacks 1 | . . . . . 1 . Unlock Access 1 | . . . . . 1 . Unauthorized Hacks . | . . . . . . . Terminals . | . . . . . . . Fabricators . | . . . . . . . Repair Stations . | . . . . . . . Recycling Units . | . . . . . . . Scanalyzers . | . . . . . . . Garrison Access . | . . . . . . . Data Cores Recovered . | . . . . . . . Used . | . . . . . . . Hacking Detections 6 | . . 1 1 2 2 . Full Trace Events 3 | . . . . 2 1 . Feedback Events . | . . . . . . . Feedback Blocked . | . . . . . . . Robot Schematics Acquired . | . . . . . . . Robots Built . | . . . . . . . Authchips . | . . . . . . . Time . | . . . . . . . Total Robot Build Rating . | . . . . . . . Part Schematics Acquired . | . . . . . . . Parts Built . | . . . . . . . Authchips . | . . . . . . . Time . | . . . . . . . Total Part Build Rating . | . . . . . . . Part Studies Acquired 1 | . . 1 . . . . Parts Repaired . | . . . . . . . Time . | . . . . . . . Parts Recycled . | . . . . . . . Recycled Matter . | . . . . . . . Retrieved Matter . | . . . . . . . Retrieved Components 2 | . . . . . 2 . Parts Scanalyzed . | . . . . . . . Part Schematics Acquired . | . . . . . . . Parts Damaged . | . . . . . . . Bothacking | -11 -10 -9 -9 -8 -7 -7 ------------ Run | Yrd Mat Mat Min Mat Fac Gar Used RIF Installer 1 | . . . . . . 1 Robots Hacked . | . . . . . . . Non-combat . | . . . . . . . Combat . | . . . . . . . Robot Hacks Applied . | . . . . . . . Relay Couplers Released . | . . . . . . . Fabnet Peak Effective % . | . . . . . . . Robots Rewired . | . . . . . . . Allies Hacked . | . . . . . . . Hacks Repelled . | . . . . . . . Allies | -11 -10 -9 -9 -8 -7 -7 -------- Run | Yrd Mat Mat Min Mat Fac Gar Total Allies . | . . . . . . . Largest Group . | . . . . . . . Highest-Rated Group . | . . . . . . . Highest-Rated Ally . | . . . . . . . Total Orders . | . . . . . . . Ally Attacks . | . . . . . . . Total Damage . | . . . . . . . Kills . | . . . . . . . Allies Corrupted . | . . . . . . . Allies Melted . | . . . . . . . Intel | -11 -10 -9 -9 -8 -7 -7 ------- Run | Yrd Mat Mat Min Mat Fac Gar Active Infowar (turns) 214 | . . . . 126 88 . Optics 214 | . . . . 126 88 . Robot Analysis Total . | . . . . . . . Derelict Logs Recovered 2 | . . . 2 . . . Drone Launches . | . . . . . . . Drone Recoveries . | . . . . . . . Exploration | -11 -10 -9 -9 -8 -7 -7 ------------- Run | Yrd Mat Mat Min Mat Fac Gar Turns Passed 1132 | 43 178 319 205 170 99 118 Spaces Moved 958 | 35 161 119 188 200 77 178 Core 292 | 2 . . 23 45 44 178 Treads . | . . . . . . . Legs 33 | . . . . . 33 . Wheels 478 | 33 161 119 165 . . . Hover . | . . . . . . . Flight 155 | . . . . 155 . . Fastest Speed 35 | 50 90 90 90 35 50 50 Average Speed 76 | 86 90 90 91 55 101 50 Slowest Speed 350 | 90 90 90 200 115 350 50 Overloaded Moves . | . . . . . . . Propulsion Burnouts . | . . . . . . . Robots Hopped 1 | . . . . 1 . . Potential Cave-ins . | . . . . . . . Cave-ins Triggered . | . . . . . . . Exploration Rate (%) 26 | 3 43 18 47 30 3 38 Regions Visited 6 Branch Regions 1 Pre-discovered Areas 2 | . . . 2 . . . Known Exits Taken 2 | . . . . 1 1 . Unknown Exits Taken 4 | 1 1 1 1 . . . Scrap Searched . | . . . . . . . Spaces Dug 2 | . . . . 2 . . Terrain Destroyed 17 | . . . 13 4 . . Melee . | . . . . . . . Projectile 4 | . . . . 4 . . AOE 13 | . . . 13 . . . Terrain Rammed . | . . . . . . . Walls Destroyed . | . . . . . . . Machines Disabled . | . . . . . . . Actions | -11 -10 -9 -9 -8 -7 -7 --------- Run | Yrd Mat Mat Min Mat Fac Gar Total 1293 | 42 187 330 204 233 90 207 Wait 236 | . 16 208 3 9 . . Move 950 | 34 160 118 187 197 76 178 Hop 1 | . . . . 1 . . Pick Up 15 | 1 6 2 1 4 1 . Fast Attach 17 | 6 1 1 . 4 5 . Attach 7 | . . 1 1 4 1 . Detach 1 | . . . . 1 . . Swap 1 | . . . 1 . . . Drop 4 | . . . 1 2 1 . Fire 31 | 1 4 . 10 11 5 . Melee . | . . . . . . . Ram 7 | . . . . . . 7 Kick 1 | . . . . . 1 . Crush . | . . . . . . . Escape Stasis 22 | . . . . . . 22 Rewire . | . . . . . . . Trap . | . . . . . . . Miscellaneous . | . . . . . . . Route ------- -11/Scrapyard -10/Materials -9/Materials -9/Mines -8/Materials (discovered 3 exits: *Fac x3) -7/Factory -7/Garrison (discovered 1 exit: [*Fac]) History --------- Turn | Location | Event 24 | -11/Scrapyard | Discovered new exit (range 16) 44 | -11/Scrapyard | Entered Materials 45 | -10/Materials | Met a group of wandering Federalists 158 | -10/Materials | Discovered new exit (range 13) 212 | -10/Materials | Lost 3 allies 222 | -10/Materials | Entered another Materials area 222 | -9/Materials | Accompanied by 1 ally 222 | -9/Materials | Evolved 2 slots: Utility x1, Weapon x1 245 | -9/Materials | Central database locked down 518 | -9/Materials | Build established: Gunner 530 | -9/Materials | Discovered new exit (range 13) 541 | -9/Materials | Entered Mines 553 | -9/Mines | Learned location of Storage (-7) 579 | -9/Mines | Discovered new exit (range 14) 596 | -9/Mines | Met a Derelict bent on vengeance 631 | -9/Mines | Learned location of Zion (-6) 686 | -9/Mines | Assembled infested the area 691 | -9/Mines | Assisted by a Guerilla fighting off Assembled 728 | -9/Mines | Core integrity fell below 50% 741 | -9/Mines | Core integrity fell below 20% 746 | -9/Mines | Entered Materials 746 | -8/Materials | Evolved 2 slots: Propulsion x1, Utility x1 755 | -8/Materials | Lost 8 parts (1p2n1u4w) 773 | -8/Materials | Identified exit to Factory 916 | -8/Materials | Entered Factory 916 | -7/Factory | Evolved 2 slots: Propulsion x1, Utility x1 937 | -7/Factory | Lost 3 parts (1p1n1u) 1004 | -7/Factory | Released all parts (6) 1015 | -7/Factory | Identified exit to Garrison 1015 | -7/Factory | Entered Garrison 1024 | -7/Garrison | Build established: Mutant 1031 | -7/Garrison | Lost 3 parts (1n1u1w) 1079 | -7/Garrison | Triggered checkpoint 1081 | -7/Garrison | Triggered checkpoint 1099 | -7/Garrison | Triggered checkpoint 1102 | -7/Garrison | Core integrity fell below 50% 1107 | -7/Garrison | Installed Relay Interface Framework 1114 | -7/Garrison | Core integrity fell below 20% 1131 | -7/Garrison | Discovered new exit (range 12) 1133 | -7/Garrison | Destroyed by S-27 Virus with Autogun Last Messages --------------- 01086_ Triggered Stasis Trap. 01086_ A bubble of rippling energy engulfs the area. 01086_ Field strength at 94. 01086_ Field strength at 88. 01087_ Field strength at 75. 01088_ Field strength at 65. 01089_ Field strength at 54. 01090_ Field strength at 36. 01091_ Field strength at 26. 01092_ Field strength at 12. 01093_ Stasis field depleted. 01099_ Beams of light sweep through the air. An alarm sounds. Initiating installation procedure... 01107_ Relay Interface Framework installed. 01107_ Slammed into S-27 Virus. 01110_ Destabilizing: Core damaged (-35). 01111_ Slammed into S-27 Virus. 01131_ EXIT=FOUND Map ----- +----------------------------------------------------+ | | | ?????????????????????????????????????????????????? | | ?????????????????????????????????????????????????? | | ?????????????????????????????????????????????????? | | ?????????????????????????????????????????????????? | | ?????????????????????????????????????????????????? | | ?????????????????????????????????????????????????? | | ?????????????????????????????????????????????????? | | ?????????????????????????????????????????????????? | | ?????????????????????????????????????????????????? | | ?????????????????????????????????????????????????? | | ?????????????????????????????????????????????????? | | ?????????????????????????????????????????????????? | | ?????????????????????????????????????????????????? | | ?????????????????????????????????????????????????? | | ?????????????????????????????????????????????????? | | ?????????????????????????????????????????????????? | | ?????????????????????????????????????????????????? | | ?????????????????????????????????????????????????? | | ?????????????????????????????????????????????????? | | ?????????????????????????????????????????????????? | | ?????????????????????????????????????????????????? | | ?????????????????????????????????????????????????? | | ?????????????????????????????????????????????????? | | ????????????????# < #############????????????????? | | ????????????????# @ #????????????????? | | ????????????????# sss #????????????????? | | ????????????????############## #????????????????? | | ????????????????????????## ## #????????????????? | | ???????????????????????## # #????????????????? | | ???????????????????????# #????????????????? | | ???????????????????????# # # #????????????????? | | ???????????????????????# # # #????????????????? | | ????????????################## ######??###??????? | | ????????????# #??????? | | ????????????# ###"""########## #??????? | | ????????????# #??????????????# ######## #??????? | | ??????????### #??????????????# #??????# #??????? | | ??????????#"# #??????????????# #??????# #??????? | | ??????????#" #??????????????# #??????# #??????? | | ??????????#" #??????????????" +??????# #??????? | | ??????????#" #??????????????# #??????# #??????? | | ??????????#"# #??????????????# #??????# #??????? | | ??????????### #?#####????????# #?????## ##""""## | | ??#######???# #?# #????????# ####### | | ??#"""" ##### ### ########## | | ??#" | | ??#"""" ############################### ## #? | | ??#######???????????????????????????### ## ## | | ????????????????????????????????????# | +----------------------------------------------------+ Best States ------------- Heat Dissipation 34 Coolant Potential 65 Energy Generation 14 Energy Capacity 275 Matter Stores 300 Matter Capacity 300 Sight Range 20 Terrain Scan Density 10 Additional Mass Support 9 Armor Coverage 150 Evasion (%) 63 Targeting Accuracy 5 Authchip Count 4 Item Schematics ----------------- None Robot Schematics ------------------ None Fabricated ------------ Nothing Repaired ---------- Nothing Studied --------- Lgt. Assault Rifle | -9/Materials | Hacked Alien Tech Used ----------------- None Achievements -------------- None Challenges ------------ None Game ------ Seed ExplosiveLinkedHarness Manual? 0 Play Time 00:13:15 Cumulative 43.9 hours Start 2025.12.21 @ 17:25:20 End 2025.12.21 @ 17:37:24 Sessions 1 Manual Loads 0 Difficulty Rogue Special Mode None Game No. 39 Rogue 37 Adventurer 2 Explorer 0 Win Type - Total 1 Types 0/0/0/1/0/0/0/0/0/0 Lore% 31 Gallery% 50 Achievement% 42 Wizard Run 0 Options --------- Layout 2 ASCII 0 Keyboard 1 Movement Numpad Keybinds 0 Fullscreen 1 Font 32/SmallcapsGlow Map View 50x49 Zoom Use 0% Tactical HUD 1 Map Filters NONE Filters NONE Steam 0 RUN: b86f390c-c653-4a9d-a678-2d1afa1df0c1